[Event "Titled Tuesday Blitz January 10 Early 2023"]
[White "Tania, Sachdev"]
[Black "Gutkin, Ilya"]
[WhiteFideId "5007844"]
[BlackFideId "16203470"]
[WhiteElo "2389"]
[BlackElo "2273"]
[Result "1-0"]
[Round "11"]
[TimeControl "180+2"]
[Date "2023.01.10"]
[WhiteClock "0:00:22"]
[BlackClock "0:00:02"]

1. d4 {[%clk 0:03:00]}  e6 {[%clk 0:03:00]} 2. c4 {[%clk 0:03:01]}  Bb4+ {[%clk 0:02:58]} 3. Bd2 {[%clk 0:03:00]}  Qe7 {[%clk 0:02:59]} 4. Nc3 {[%clk 0:02:59]}  c5 {[%clk 0:02:57]} 5. d5 {[%clk 0:02:55]}  f5 {[%clk 0:02:55]} 6. a3 {[%clk 0:02:49]}  Ba5 {[%clk 0:02:49]} 7. Nb5 {[%clk 0:02:40]}  Bxd2+ {[%clk 0:02:45]} 8. Qxd2 {[%clk 0:02:40]}  Na6 {[%clk 0:02:23]} 9. dxe6 {[%clk 0:02:39]}  dxe6 {[%clk 0:02:22]} 10. Nd6+ {[%clk 0:02:39]}  Kf8 {[%clk 0:02:20]} 11. Nxc8 {[%clk 0:02:24]}  Rxc8 {[%clk 0:02:19]} 12. Nf3 {[%clk 0:02:25]}  Nf6 {[%clk 0:02:14]} 13. e3 {[%clk 0:02:25]}  Ne4 {[%clk 0:02:05]} 14. Qc2 {[%clk 0:02:24]}  Rd8 {[%clk 0:01:29]} 15. Bd3 {[%clk 0:02:24]}  Nf6 {[%clk 0:01:28]} 16. O-O {[%clk 0:02:21]}  Nb8 {[%clk 0:01:16]} 17. Rad1 {[%clk 0:02:02]}  Nc6 {[%clk 0:01:15]} 18. Qc3 {[%clk 0:02:03]}  g6 {[%clk 0:01:11]} 19. Bc2 {[%clk 0:01:29]}  Kg7 {[%clk 0:01:10]} 20. Ba4 {[%clk 0:01:28]}  Qc7 {[%clk 0:01:08]} 21. Ng5 {[%clk 0:01:24]}  Rhe8 {[%clk 0:00:51]} 22. Nxh7 {[%clk 0:01:11]}  Kxh7 {[%clk 0:00:35]} 23. Qxf6 {[%clk 0:01:09]}  Rxd1 {[%clk 0:00:27]} 24. Rxd1 {[%clk 0:01:08]}  Re7 {[%clk 0:00:10]} 25. Bxc6 {[%clk 0:00:53]}  bxc6 {[%clk 0:00:10]} 26. g3 {[%clk 0:00:54]}  Rd7 {[%clk 0:00:09]} 27. Rxd7+ {[%clk 0:00:32]}  Qxd7 {[%clk 0:00:10]} 28. Kg2 {[%clk 0:00:33]}  a5 {[%clk 0:00:05]} 29. h4 {[%clk 0:00:33]}  a4 {[%clk 0:00:04]} 30. Qe5 {[%clk 0:00:29]}  Kg8 {[%clk 0:00:03]} 31. Qxc5 {[%clk 0:00:27]}  Kf7 {[%clk 0:00:02]} 32. Qd4 {[%clk 0:00:24]}  Qb7 {[%clk 0:00:02]} 33. c5 {[%clk 0:00:23]}  Qb3 {[%clk 0:00:03]} 34. Qd7+ {[%clk 0:00:23]}  Kf6 {[%clk 0:00:02]} 35. Qxc6 {[%clk 0:00:23]}  Qxb2 {[%clk 0:00:03]} 36. Qxa4 {[%clk 0:00:22]}  Qc1 {[%clk 0:00:04]} 37. Qd4+ {[%clk 0:00:22]}  e5 {[%clk 0:00:04]} 38. Qd6+ {[%clk 0:00:22]}  Kf7 {[%clk 0:00:05]} 39. c6 {[%clk 0:00:23]}  e4 {[%clk 0:00:03]} 40. c7 {[%clk 0:00:22]}  Qd1 {[%clk 0:00:02]} 41. Qxd1 {[%clk 0:00:22]} 1-0


[Site "https://www.chess.com"]

[Event "Titled Tuesday Blitz January 10 Early 2023"]
[White "Golizadeh, Asghar"]
[Black "Torres Dominguez, David"]
[WhiteFideId "12505269"]
[BlackFideId "2220857"]
[WhiteElo "2455"]
[BlackElo "1994"]
[Result "1-0"]
[Round "11"]
[TimeControl "180+2"]
[Date "2023.01.10"]
[WhiteClock "0:01:40"]
[BlackClock "0:00:41"]

1. e4 {[%clk 0:03:00]}  Nc6 {[%clk 0:02:26]} 2. Nf3 {[%clk 0:02:59]}  e5 {[%clk 0:02:25]} 3. d4 {[%clk 0:02:57]}  exd4 {[%clk 0:02:25]} 4. Bc4 {[%clk 0:02:56]}  Bc5 {[%clk 0:02:24]} 5. c3 {[%clk 0:02:56]}  Nf6 {[%clk 0:02:22]} 6. e5 {[%clk 0:02:56]}  d5 {[%clk 0:02:21]} 7. Bb5 {[%clk 0:02:55]}  Ne4 {[%clk 0:02:19]} 8. cxd4 {[%clk 0:02:56]}  Bb6 {[%clk 0:02:18]} 9. Nc3 {[%clk 0:02:55]}  O-O {[%clk 0:02:16]} 10. O-O {[%clk 0:02:53]}  Bg4 {[%clk 0:02:12]} 11. h3 {[%clk 0:02:51]}  Bxf3 {[%clk 0:01:59]} 12. gxf3 {[%clk 0:02:50]}  Ng5 {[%clk 0:01:58]} 13. f4 {[%clk 0:02:48]}  Nxh3+ {[%clk 0:01:54]} 14. Kg2 {[%clk 0:02:47]}  Qh4 {[%clk 0:01:50]} 15. Bxc6 {[%clk 0:02:45]}  bxc6 {[%clk 0:01:47]} 16. Qf3 {[%clk 0:02:44]}  Nxf2 {[%clk 0:01:42]} 17. Qxf2 {[%clk 0:02:42]}  Qxf2+ {[%clk 0:01:34]} 18. Kxf2 {[%clk 0:02:41]}  Bxd4+ {[%clk 0:01:33]} 19. Be3 {[%clk 0:02:42]}  Bxe3+ {[%clk 0:01:21]} 20. Kxe3 {[%clk 0:02:43]}  Rae8 {[%clk 0:01:21]} 21. Kd4 {[%clk 0:02:41]}  f6 {[%clk 0:01:12]} 22. Rae1 {[%clk 0:02:29]}  fxe5+ {[%clk 0:01:07]} 23. fxe5 {[%clk 0:02:26]}  Rxf1 {[%clk 0:01:06]} 24. Rxf1 {[%clk 0:02:24]}  Rf8 {[%clk 0:01:02]} 25. Rxf8+ {[%clk 0:02:22]}  Kxf8 {[%clk 0:01:02]} 26. e6 {[%clk 0:02:23]}  Ke7 {[%clk 0:01:00]} 27. Ke5 {[%clk 0:02:22]}  d4 {[%clk 0:00:56]} 28. Ne2 {[%clk 0:01:44]}  d3 {[%clk 0:00:55]} 29. Nd4 {[%clk 0:01:45]}  d2 {[%clk 0:00:53]} 30. Nf5+ {[%clk 0:01:45]}  Ke8 {[%clk 0:00:49]} 31. Nxg7+ {[%clk 0:01:42]}  Kf8 {[%clk 0:00:41]} 32. Kf6 {[%clk 0:01:40]} 1-0


[Site "https://www.chess.com"]

[Event "Titled Tuesday Blitz January 10 Early 2023"]
[White "Shubenkova, Veronika"]
[Black "Hsu, Li Yang"]
[WhiteFideId "44124040"]
[BlackFideId "5800080"]
[WhiteElo "1960"]
[BlackElo "2427"]
[Result "0-1"]
[Round "11"]
[TimeControl "180+2"]
[Date "2023.01.10"]
[WhiteClock "0:00:03"]
[BlackClock "0:00:12"]

1. e4 {[%clk 0:03:00]}  c6 {[%clk 0:02:59]} 2. d4 {[%clk 0:03:00]}  d5 {[%clk 0:03:00]} 3. Nc3 {[%clk 0:03:00]}  dxe4 {[%clk 0:03:00]} 4. Nxe4 {[%clk 0:02:59]}  Nd7 {[%clk 0:03:00]} 5. c3 {[%clk 0:02:58]}  Ngf6 {[%clk 0:02:59]} 6. Ng3 {[%clk 0:02:56]}  e6 {[%clk 0:02:54]} 7. Nf3 {[%clk 0:02:56]}  Bd6 {[%clk 0:02:53]} 8. Bd3 {[%clk 0:02:56]}  Qc7 {[%clk 0:02:53]} 9. O-O {[%clk 0:02:55]}  b6 {[%clk 0:02:52]} 10. Re1 {[%clk 0:02:56]}  O-O {[%clk 0:02:51]} 11. b3 {[%clk 0:02:56]}  Bb7 {[%clk 0:02:51]} 12. Bb2 {[%clk 0:02:56]}  c5 {[%clk 0:02:51]} 13. Rc1 {[%clk 0:02:47]}  Rad8 {[%clk 0:02:50]} 14. Bb1 {[%clk 0:02:47]}  Bf4 {[%clk 0:02:47]} 15. Rc2 {[%clk 0:02:46]}  c4 {[%clk 0:02:35]} 16. Rce2 {[%clk 0:02:44]}  Bd5 {[%clk 0:02:28]} 17. Nf1 {[%clk 0:02:37]}  Qb7 {[%clk 0:02:24]} 18. N1d2 {[%clk 0:02:31]}  Bxd2 {[%clk 0:02:21]} 19. Rxd2 {[%clk 0:02:30]}  b5 {[%clk 0:02:06]} 20. Ba3 {[%clk 0:02:15]}  Rfe8 {[%clk 0:02:05]} 21. Bd6 {[%clk 0:02:14]}  a5 {[%clk 0:02:01]} 22. Qe2 {[%clk 0:02:06]}  cxb3 {[%clk 0:01:56]} 23. axb3 {[%clk 0:02:03]}  Bxb3 {[%clk 0:01:52]} 24. Rb2 {[%clk 0:02:03]}  a4 {[%clk 0:01:45]} 25. Bd3 {[%clk 0:01:58]}  Nb6 {[%clk 0:01:39]} 26. Bc5 {[%clk 0:01:50]}  Nc4 {[%clk 0:01:29]} 27. Rbb1 {[%clk 0:01:49]}  Qc8 {[%clk 0:01:18]} 28. Ne5 {[%clk 0:01:46]}  Nxe5 {[%clk 0:01:11]} 29. Qxe5 {[%clk 0:01:39]}  Nd7 {[%clk 0:01:10]} 30. Qe4 {[%clk 0:01:36]}  f5 {[%clk 0:01:09]} 31. Qe2 {[%clk 0:01:28]}  Nxc5 {[%clk 0:01:07]} 32. dxc5 {[%clk 0:01:28]}  Qxc5 {[%clk 0:01:07]} 33. Bxb5 {[%clk 0:01:28]}  Re7 {[%clk 0:01:06]} 34. c4 {[%clk 0:01:28]}  Rd6 {[%clk 0:00:58]} 35. Qf3 {[%clk 0:01:26]}  h6 {[%clk 0:00:54]} 36. Rb2 {[%clk 0:01:17]}  Kh7 {[%clk 0:00:54]} 37. Rbe2 {[%clk 0:01:17]}  Bxc4 {[%clk 0:00:49]} 38. Re5 {[%clk 0:01:12]}  Bd5 {[%clk 0:00:44]} 39. Qe2 {[%clk 0:01:08]}  a3 {[%clk 0:00:40]} 40. Bd3 {[%clk 0:01:07]}  Rf7 {[%clk 0:00:38]} 41. g4 {[%clk 0:00:54]}  g6 {[%clk 0:00:35]} 42. h4 {[%clk 0:00:39]}  Qd4 {[%clk 0:00:34]} 43. h5 {[%clk 0:00:39]}  a2 {[%clk 0:00:31]} 44. hxg6+ {[%clk 0:00:27]}  Kxg6 {[%clk 0:00:32]} 45. gxf5+ {[%clk 0:00:27]}  exf5 {[%clk 0:00:28]} 46. Re8 {[%clk 0:00:08]}  a1=Q {[%clk 0:00:22]} 47. Bxf5+ {[%clk 0:00:04]}  Kf6 {[%clk 0:00:17]} 48. Rxa1 {[%clk 0:00:02]}  Qxa1+ {[%clk 0:00:18]} 49. Kh2 {[%clk 0:00:03]}  Qh1+ {[%clk 0:00:12]} 50. Kg3 {[%clk 0:00:03]}  Qg2+ {[%clk 0:00:12]} 51. Kf4 {[%clk 0:00:03]}  Qg5# {[%clk 0:00:12]} 0-1


[Site "https://www.chess.com"]

[Event "Titled Tuesday Blitz January 10 Early 2023"]
[White "Ordekalog"]
[Black "Tarasova, Viktoriya"]
[BlackFideId "4175840"]
[WhiteElo "2635"]
[BlackElo "2226"]
[Result "1-0"]
[Round "11"]
[TimeControl "180+2"]
[Date "2023.01.10"]
[WhiteClock "0:00:03"]
[BlackClock "0:00:02"]

1. d4 {[%clk 0:03:00]}  Nf6 {[%clk 0:02:59]} 2. c4 {[%clk 0:03:00]}  e6 {[%clk 0:02:59]} 3. Nc3 {[%clk 0:02:59]}  Bb4 {[%clk 0:02:59]} 4. Bd2 {[%clk 0:02:58]}  O-O {[%clk 0:02:58]} 5. Nf3 {[%clk 0:02:57]}  d5 {[%clk 0:02:58]} 6. e3 {[%clk 0:02:56]}  b6 {[%clk 0:02:53]} 7. Rc1 {[%clk 0:02:55]}  Bb7 {[%clk 0:02:47]} 8. cxd5 {[%clk 0:02:55]}  exd5 {[%clk 0:02:47]} 9. Bd3 {[%clk 0:02:54]}  Nbd7 {[%clk 0:02:45]} 10. O-O {[%clk 0:02:54]}  Re8 {[%clk 0:02:44]} 11. Nb5 {[%clk 0:02:42]}  Bxd2 {[%clk 0:02:41]} 12. Nxd2 {[%clk 0:02:38]}  Ba6 {[%clk 0:02:06]} 13. Qa4 {[%clk 0:02:36]}  Bxb5 {[%clk 0:02:03]} 14. Bxb5 {[%clk 0:02:35]}  c5 {[%clk 0:01:48]} 15. dxc5 {[%clk 0:02:15]}  bxc5 {[%clk 0:01:48]} 16. Rfd1 {[%clk 0:02:04]}  a6 {[%clk 0:01:44]} 17. Bxd7 {[%clk 0:01:55]}  Nxd7 {[%clk 0:01:31]} 18. Nf3 {[%clk 0:01:41]}  Nb6 {[%clk 0:01:27]} 19. Qa5 {[%clk 0:01:39]}  c4 {[%clk 0:01:22]} 20. Rc2 {[%clk 0:01:24]}  Qf6 {[%clk 0:01:19]} 21. Rcd2 {[%clk 0:01:20]}  h6 {[%clk 0:01:08]} 22. h3 {[%clk 0:01:18]}  Rec8 {[%clk 0:01:05]} 23. Rd4 {[%clk 0:01:18]}  Qd6 {[%clk 0:00:58]} 24. e4 {[%clk 0:01:12]}  Rc5 {[%clk 0:00:42]} 25. Qd2 {[%clk 0:01:01]}  Rd8 {[%clk 0:00:39]} 26. Qe3 {[%clk 0:00:50]}  Qc7 {[%clk 0:00:27]} 27. Qa3 {[%clk 0:00:30]}  a5 {[%clk 0:00:20]} 28. Qe3 {[%clk 0:00:25]}  c3 {[%clk 0:00:14]} 29. bxc3 {[%clk 0:00:24]}  Rxc3 {[%clk 0:00:13]} 30. Qe1 {[%clk 0:00:21]}  Rc5 {[%clk 0:00:10]} 31. e5 {[%clk 0:00:19]}  Nc4 {[%clk 0:00:09]} 32. e6 {[%clk 0:00:18]}  fxe6 {[%clk 0:00:08]} 33. Qxe6+ {[%clk 0:00:17]}  Qf7 {[%clk 0:00:08]} 34. Qg4 {[%clk 0:00:15]}  Nb2 {[%clk 0:00:06]} 35. Re1 {[%clk 0:00:11]}  Rdc8 {[%clk 0:00:07]} 36. Ne5 {[%clk 0:00:10]}  Qf6 {[%clk 0:00:06]} 37. Nd7 {[%clk 0:00:08]}  Qd6 {[%clk 0:00:01]} 38. Nxc5 {[%clk 0:00:08]}  Qxc5 {[%clk 0:00:02]} 39. Qe6+ {[%clk 0:00:06]}  Kh8 {[%clk 0:00:02]} 40. Rg4 {[%clk 0:00:05]}  Qc3 {[%clk 0:00:02]} 41. Re3 {[%clk 0:00:03]}  Nd3 {[%clk 0:00:02]} 42. Rxd3 {[%clk 0:00:03]}  Qc1+ {[%clk 0:00:01]} 43. Kh2 {[%clk 0:00:02]}  Rg8 {[%clk 0:00:02]} 44. Rdg3 {[%clk 0:00:02]}  Qd2 {[%clk 0:00:02]} 45. Qg6 {[%clk 0:00:03]} 1-0


[Site "https://www.chess.com"]

[Event "Titled Tuesday Blitz January 10 Early 2023"]
[White "Gheorghiu, Calin"]
[Black "Khalafova, Narmin"]
[WhiteFideId "1200305"]
[BlackFideId "13402625"]
[WhiteElo "2313"]
[BlackElo "2246"]
[Result "1-0"]
[Round "11"]
[TimeControl "180+2"]
[Date "2023.01.10"]
[WhiteClock "0:00:15"]
[BlackClock "0:00:25"]

1. b3 {[%clk 0:03:00]}  Nf6 {[%clk 0:02:55]} 2. Bb2 {[%clk 0:03:00]}  g6 {[%clk 0:02:56]} 3. g3 {[%clk 0:03:00]}  Bg7 {[%clk 0:02:55]} 4. Bg2 {[%clk 0:03:01]}  O-O {[%clk 0:02:55]} 5. e3 {[%clk 0:03:00]}  d5 {[%clk 0:02:54]} 6. Ne2 {[%clk 0:03:00]}  c5 {[%clk 0:02:54]} 7. d3 {[%clk 0:02:58]}  Nc6 {[%clk 0:02:54]} 8. Nd2 {[%clk 0:02:57]}  Bg4 {[%clk 0:02:52]} 9. h3 {[%clk 0:02:56]}  Bf5 {[%clk 0:02:50]} 10. g4 {[%clk 0:02:55]}  Bc8 {[%clk 0:02:44]} 11. O-O {[%clk 0:02:55]}  h5 {[%clk 0:02:42]} 12. g5 {[%clk 0:02:50]}  Ne8 {[%clk 0:02:41]} 13. Qc1 {[%clk 0:02:41]}  e5 {[%clk 0:02:31]} 14. f4 {[%clk 0:02:18]}  Nc7 {[%clk 0:02:13]} 15. Nf3 {[%clk 0:02:02]}  exf4 {[%clk 0:01:51]} 16. Bxg7 {[%clk 0:02:00]}  Kxg7 {[%clk 0:01:49]} 17. Nxf4 {[%clk 0:01:58]}  Ne6 {[%clk 0:01:41]} 18. Qb2+ {[%clk 0:01:52]}  Kh7 {[%clk 0:01:36]} 19. c4 {[%clk 0:01:35]}  Nxf4 {[%clk 0:01:26]} 20. exf4 {[%clk 0:01:32]}  d4 {[%clk 0:01:27]} 21. Rae1 {[%clk 0:01:27]}  Bf5 {[%clk 0:01:25]} 22. Qd2 {[%clk 0:01:17]}  Qc8 {[%clk 0:01:11]} 23. Kh2 {[%clk 0:01:13]}  Re8 {[%clk 0:01:00]} 24. Nh4 {[%clk 0:01:05]}  Rxe1 {[%clk 0:00:51]} 25. Rxe1 {[%clk 0:01:05]}  Be6 {[%clk 0:00:44]} 26. a3 {[%clk 0:00:30]}  Ne7 {[%clk 0:00:42]} 27. b4 {[%clk 0:00:29]}  Nf5 {[%clk 0:00:40]} 28. Nxf5 {[%clk 0:00:28]}  Bxf5 {[%clk 0:00:41]} 29. Re5 {[%clk 0:00:26]}  cxb4 {[%clk 0:00:39]} 30. Qxb4 {[%clk 0:00:26]}  Bxd3 {[%clk 0:00:38]} 31. Bxb7 {[%clk 0:00:23]}  Qf8 {[%clk 0:00:26]} 32. Bxa8 {[%clk 0:00:20]}  Qxa8 {[%clk 0:00:27]} 33. Re7 {[%clk 0:00:14]}  Kg7 {[%clk 0:00:19]} 34. Qd6 {[%clk 0:00:10]}  Bxc4 {[%clk 0:00:18]} 35. Qe5+ {[%clk 0:00:08]}  Kf8 {[%clk 0:00:17]} 36. Qh8+ {[%clk 0:00:08]}  Kxe7 {[%clk 0:00:18]} 37. Qxa8 {[%clk 0:00:08]}  d3 {[%clk 0:00:18]} 38. Qxa7+ {[%clk 0:00:08]}  Kd6 {[%clk 0:00:19]} 39. Qd4+ {[%clk 0:00:09]}  Kc6 {[%clk 0:00:18]} 40. Qxc4+ {[%clk 0:00:09]}  Kb6 {[%clk 0:00:19]} 41. Qxd3 {[%clk 0:00:10]}  Ka5 {[%clk 0:00:20]} 42. Qd5+ {[%clk 0:00:10]}  Ka4 {[%clk 0:00:21]} 43. Qxf7 {[%clk 0:00:10]}  Kxa3 {[%clk 0:00:22]} 44. Qxg6 {[%clk 0:00:11]}  Kb2 {[%clk 0:00:23]} 45. Qxh5 {[%clk 0:00:12]}  Kc3 {[%clk 0:00:23]} 46. Qe2 {[%clk 0:00:12]}  Kd4 {[%clk 0:00:23]} 47. f5 {[%clk 0:00:13]}  Kd5 {[%clk 0:00:24]} 48. f6 {[%clk 0:00:14]}  Kd4 {[%clk 0:00:25]} 49. f7 {[%clk 0:00:15]} 1-0


[Site "https://www.chess.com"]

[Event "Titled Tuesday Blitz January 10 Early 2023"]
[White "Stanojevic, Ilija"]
[Black "Sala, Giulia"]
[WhiteFideId "959995"]
[BlackFideId "2840451"]
[WhiteElo "2142"]
[BlackElo "1998"]
[Result "1-0"]
[Round "11"]
[TimeControl "180+2"]
[Date "2023.01.10"]
[WhiteClock "0:00:13"]
[BlackClock "0:00:05"]

1. d4 {[%clk 0:02:57]}  Nf6 {[%clk 0:02:51]} 2. c4 {[%clk 0:02:54]}  e6 {[%clk 0:02:51]} 3. g3 {[%clk 0:02:54]}  c6 {[%clk 0:02:51]} 4. Bg2 {[%clk 0:02:52]}  d5 {[%clk 0:02:51]} 5. Nf3 {[%clk 0:02:52]}  Bd6 {[%clk 0:02:48]} 6. Nbd2 {[%clk 0:02:52]}  Nbd7 {[%clk 0:02:47]} 7. Qc2 {[%clk 0:02:52]}  O-O {[%clk 0:02:46]} 8. O-O {[%clk 0:02:44]}  Qe7 {[%clk 0:02:45]} 9. e4 {[%clk 0:02:40]}  dxe4 {[%clk 0:02:43]} 10. Nxe4 {[%clk 0:02:41]}  Bc7 {[%clk 0:02:43]} 11. Re1 {[%clk 0:02:22]}  Nb6 {[%clk 0:02:37]} 12. Bg5 {[%clk 0:02:16]}  Nbd7 {[%clk 0:02:32]} 13. Rad1 {[%clk 0:02:11]}  h6 {[%clk 0:02:31]} 14. Nxf6+ {[%clk 0:01:58]}  Nxf6 {[%clk 0:02:26]} 15. Bd2 {[%clk 0:01:58]}  Rd8 {[%clk 0:02:24]} 16. Bc3 {[%clk 0:01:58]}  b6 {[%clk 0:02:22]} 17. Ne5 {[%clk 0:01:50]}  Bb7 {[%clk 0:02:21]} 18. Nxc6 {[%clk 0:01:46]}  Bxc6 {[%clk 0:02:18]} 19. Bxc6 {[%clk 0:01:47]}  Rac8 {[%clk 0:02:18]} 20. d5 {[%clk 0:01:41]}  Bd6 {[%clk 0:02:10]} 21. a3 {[%clk 0:01:37]}  Bc5 {[%clk 0:02:01]} 22. b4 {[%clk 0:01:29]}  Bd6 {[%clk 0:02:00]} 23. Qb2 {[%clk 0:01:16]}  Rc7 {[%clk 0:01:52]} 24. Be5 {[%clk 0:00:45]}  exd5 {[%clk 0:01:36]} 25. Bxf6 {[%clk 0:00:29]}  Qxf6 {[%clk 0:01:29]} 26. Qxf6 {[%clk 0:00:29]}  gxf6 {[%clk 0:01:29]} 27. cxd5 {[%clk 0:00:30]}  Be5 {[%clk 0:01:27]} 28. b5 {[%clk 0:00:29]}  Re7 {[%clk 0:01:22]} 29. f4 {[%clk 0:00:28]}  Bd6 {[%clk 0:01:21]} 30. Rxe7 {[%clk 0:00:28]}  Bxe7 {[%clk 0:01:22]} 31. Re1 {[%clk 0:00:29]}  Bxa3 {[%clk 0:01:22]} 32. Ra1 {[%clk 0:00:28]}  Bc5+ {[%clk 0:01:19]} 33. Kg2 {[%clk 0:00:29]}  Kf8 {[%clk 0:01:08]} 34. Rxa7 {[%clk 0:00:28]}  Rc8 {[%clk 0:01:06]} 35. Kf3 {[%clk 0:00:27]}  Rd8 {[%clk 0:01:01]} 36. h3 {[%clk 0:00:27]}  Rd6 {[%clk 0:01:01]} 37. Ke4 {[%clk 0:00:26]}  Kg7 {[%clk 0:01:00]} 38. g4 {[%clk 0:00:26]}  Kg6 {[%clk 0:00:59]} 39. Be8 {[%clk 0:00:25]}  f5+ {[%clk 0:00:52]} 40. Ke5 {[%clk 0:00:22]}  fxg4 {[%clk 0:00:43]} 41. hxg4 {[%clk 0:00:20]}  Rf6 {[%clk 0:00:38]} 42. Rd7 {[%clk 0:00:17]}  Ba3 {[%clk 0:00:29]} 43. d6 {[%clk 0:00:15]}  Bb2+ {[%clk 0:00:26]} 44. Ke4 {[%clk 0:00:14]}  Ba3 {[%clk 0:00:26]} 45. f5+ {[%clk 0:00:14]}  Kg5 {[%clk 0:00:24]} 46. Ke5 {[%clk 0:00:14]}  Bb2+ {[%clk 0:00:22]} 47. Kd5 {[%clk 0:00:14]}  Kxg4 {[%clk 0:00:20]} 48. Rxf7 {[%clk 0:00:13]}  Kxf5 {[%clk 0:00:19]} 49. Rxf6+ {[%clk 0:00:12]}  Bxf6 {[%clk 0:00:19]} 50. d7 {[%clk 0:00:12]}  Bd8 {[%clk 0:00:18]} 51. Kc6 {[%clk 0:00:12]}  Kg5 {[%clk 0:00:18]} 52. Kb7 {[%clk 0:00:12]}  Kf6 {[%clk 0:00:13]} 53. Kc8 {[%clk 0:00:12]}  Ke7 {[%clk 0:00:12]} 54. Bh5 {[%clk 0:00:12]}  Kd6 {[%clk 0:00:03]} 55. Kxd8 {[%clk 0:00:13]}  Kc5 {[%clk 0:00:04]} 56. Kc7 {[%clk 0:00:13]}  Kxb5 {[%clk 0:00:05]} 57. d8=Q {[%clk 0:00:13]} 1-0


[Site "https://www.chess.com"]

[Event "Titled Tuesday Blitz January 10 Early 2023"]
[White "Wilson, Elvin"]
[Black "Lesbekova, Assel"]
[WhiteFideId "2014874"]
[BlackFideId "13713248"]
[WhiteElo "2183"]
[BlackElo "1772"]
[Result "1-0"]
[Round "11"]
[TimeControl "180+2"]
[Date "2023.01.10"]
[WhiteClock "0:00:10"]
[BlackClock "0:00:01"]

1. c4 {[%clk 0:02:55]}  f5 {[%clk 0:02:58]} 2. g3 {[%clk 0:02:52]}  g6 {[%clk 0:02:59]} 3. Bg2 {[%clk 0:02:52]}  Bg7 {[%clk 0:02:59]} 4. Nc3 {[%clk 0:02:53]}  Nf6 {[%clk 0:02:57]} 5. d3 {[%clk 0:02:53]}  d6 {[%clk 0:02:57]} 6. e4 {[%clk 0:02:54]}  Nc6 {[%clk 0:02:55]} 7. Nge2 {[%clk 0:02:54]}  e5 {[%clk 0:02:55]} 8. O-O {[%clk 0:02:53]}  O-O {[%clk 0:02:54]} 9. exf5 {[%clk 0:02:50]}  Bxf5 {[%clk 0:02:54]} 10. h3 {[%clk 0:02:49]}  Qd7 {[%clk 0:02:51]} 11. Kh2 {[%clk 0:02:47]}  Rae8 {[%clk 0:02:50]} 12. Be3 {[%clk 0:02:47]}  Kh8 {[%clk 0:02:44]} 13. Qd2 {[%clk 0:02:22]}  Qf7 {[%clk 0:02:23]} 14. Rae1 {[%clk 0:01:53]}  e4 {[%clk 0:01:50]} 15. dxe4 {[%clk 0:00:59]}  Nxe4 {[%clk 0:01:51]} 16. Nxe4 {[%clk 0:00:57]}  Bxe4 {[%clk 0:01:52]} 17. f3 {[%clk 0:00:56]}  Bf5 {[%clk 0:01:45]} 18. b3 {[%clk 0:00:53]}  Ne5 {[%clk 0:01:33]} 19. Nd4 {[%clk 0:00:45]}  Bd7 {[%clk 0:01:19]} 20. f4 {[%clk 0:00:42]}  Nc6 {[%clk 0:01:18]} 21. Nb5 {[%clk 0:00:37]}  Be6 {[%clk 0:00:59]} 22. Nd4 {[%clk 0:00:27]}  Nxd4 {[%clk 0:00:57]} 23. Bxd4 {[%clk 0:00:27]}  Bc8 {[%clk 0:00:52]} 24. Qc3 {[%clk 0:00:21]}  a6 {[%clk 0:00:38]} 25. Bd5 {[%clk 0:00:21]}  Qd7 {[%clk 0:00:31]} 26. Be6 {[%clk 0:00:17]}  Rxe6 {[%clk 0:00:25]} 27. Rxe6 {[%clk 0:00:17]}  Qxe6 {[%clk 0:00:13]} 28. Bxg7+ {[%clk 0:00:17]}  Kg8 {[%clk 0:00:13]} 29. Bxf8 {[%clk 0:00:17]}  Qxh3+ {[%clk 0:00:13]} 30. Kg1 {[%clk 0:00:17]}  Kxf8 {[%clk 0:00:10]} 31. Qf6+ {[%clk 0:00:17]}  Kg8 {[%clk 0:00:09]} 32. Qd8+ {[%clk 0:00:16]}  Kg7 {[%clk 0:00:07]} 33. Qh4 {[%clk 0:00:16]}  Qe6 {[%clk 0:00:03]} 34. Kf2 {[%clk 0:00:15]}  Qe4 {[%clk 0:00:03]} 35. Re1 {[%clk 0:00:14]}  Qd4+ {[%clk 0:00:03]} 36. Kf1 {[%clk 0:00:13]}  Qd3+ {[%clk 0:00:03]} 37. Kg1 {[%clk 0:00:13]}  Qd4+ {[%clk 0:00:03]} 38. Kf1 {[%clk 0:00:12]}  Qd3+ {[%clk 0:00:03]} 39. Kf2 {[%clk 0:00:11]}  Qd4+ {[%clk 0:00:03]} 40. Re3 {[%clk 0:00:12]}  Qd2+ {[%clk 0:00:03]} 41. Re2 {[%clk 0:00:12]}  Qd4+ {[%clk 0:00:03]} 42. Ke1 {[%clk 0:00:12]}  Qa1+ {[%clk 0:00:02]} 43. Kf2 {[%clk 0:00:12]}  Qd4+ {[%clk 0:00:02]} 44. Kg2 {[%clk 0:00:12]}  Bf5 {[%clk 0:00:01]} 45. Qe7+ {[%clk 0:00:12]}  Kh6 {[%clk 0:00:01]} 46. Qg5+ {[%clk 0:00:12]}  Kg7 {[%clk 0:00:01]} 47. Re7+ {[%clk 0:00:12]}  Kg8 {[%clk 0:00:02]} 48. Re2 {[%clk 0:00:11]}  Be4+ {[%clk 0:00:01]} 49. Kh2 {[%clk 0:00:09]}  Qd3 {[%clk 0:00:01]} 50. Qd8+ {[%clk 0:00:09]}  Kg7 {[%clk 0:00:01]} 51. Qe7+ {[%clk 0:00:10]}  Kh6 {[%clk 0:00:01]} 52. Qxe4 {[%clk 0:00:10]}  Qxe4 {[%clk 0:00:01]} 53. Rxe4 {[%clk 0:00:10]} 1-0


[Site "https://www.chess.com"]

[Event "Titled Tuesday Blitz January 10 Early 2023"]
[White "Al-Tarboush, Ward"]
[Black "Buscar, Michael"]
[WhiteFideId "7601450"]
[BlackFideId "2603616"]
[WhiteElo "2256"]
[BlackElo "2041"]
[Result "0-1"]
[Round "11"]
[TimeControl "180+2"]
[Date "2023.01.10"]
[WhiteClock "0:02:14"]
[BlackClock "0:01:51"]

1. e4 {[%clk 0:03:00]}  c5 {[%clk 0:02:59]} 2. Nf3 {[%clk 0:03:00]}  Nc6 {[%clk 0:03:00]} 3. d4 {[%clk 0:02:59]}  cxd4 {[%clk 0:03:01]} 4. Nxd4 {[%clk 0:02:59]}  Nf6 {[%clk 0:03:01]} 5. Nc3 {[%clk 0:02:58]}  e5 {[%clk 0:03:02]} 6. Ndb5 {[%clk 0:02:58]}  h6 {[%clk 0:03:02]} 7. Be2 {[%clk 0:02:56]}  d6 {[%clk 0:03:02]} 8. Nd5 {[%clk 0:02:54]}  Nxd5 {[%clk 0:03:00]} 9. exd5 {[%clk 0:02:55]}  Nb8 {[%clk 0:03:00]} 10. c4 {[%clk 0:02:54]}  Be7 {[%clk 0:02:58]} 11. Be3 {[%clk 0:02:51]}  O-O {[%clk 0:02:53]} 12. Nxa7 {[%clk 0:02:47]}  Rxa7 {[%clk 0:02:53]} 13. Bxa7 {[%clk 0:02:46]}  Qa5+ {[%clk 0:02:53]} 14. Qd2 {[%clk 0:02:45]}  Qxa7 {[%clk 0:02:54]} 15. O-O {[%clk 0:02:45]}  f5 {[%clk 0:02:51]} 16. b4 {[%clk 0:02:44]}  e4 {[%clk 0:02:47]} 17. c5 {[%clk 0:02:45]}  dxc5 {[%clk 0:02:44]} 18. d6 {[%clk 0:02:45]}  Bf6 {[%clk 0:02:44]} 19. Qd5+ {[%clk 0:02:43]}  Kh8 {[%clk 0:02:37]} 20. bxc5 {[%clk 0:02:43]}  Bxa1 {[%clk 0:02:36]} 21. Rxa1 {[%clk 0:02:44]}  Nd7 {[%clk 0:02:27]} 22. Rc1 {[%clk 0:02:40]}  Nf6 {[%clk 0:02:25]} 23. Qe5 {[%clk 0:02:39]}  Qxa2 {[%clk 0:02:21]} 24. Bc4 {[%clk 0:02:34]}  Qd2 {[%clk 0:02:18]} 25. Ra1 {[%clk 0:02:27]}  Ng4 {[%clk 0:02:14]} 26. Qg3 {[%clk 0:02:27]}  f4 {[%clk 0:02:11]} 27. Qh4 {[%clk 0:02:27]}  e3 {[%clk 0:02:06]} 28. fxe3 {[%clk 0:02:15]}  fxe3 {[%clk 0:02:03]} 29. h3 {[%clk 0:02:15]}  Qf2+ {[%clk 0:02:00]} 30. Qxf2 {[%clk 0:02:14]}  exf2+ {[%clk 0:02:00]} 31. Kf1 {[%clk 0:02:14]}  Ne3+ {[%clk 0:02:00]} 32. Ke2 {[%clk 0:02:14]}  Nxc4 {[%clk 0:01:57]} 33. Rf1 {[%clk 0:02:14]}  Bd7 {[%clk 0:01:53]} 34. Rxf2 {[%clk 0:02:14]}  Rxf2+ {[%clk 0:01:53]} 35. Kxf2 {[%clk 0:02:15]}  Kg8 {[%clk 0:01:51]} 36. Kf3 {[%clk 0:02:14]}  Kf7 {[%clk 0:01:52]} 37. Kf4 {[%clk 0:02:14]}  Ke6 {[%clk 0:01:51]} 0-1


[Site "https://www.chess.com"]